[Event "*** Biggest EVER Titled Tuesday"]
[Site "Chess.com"]
[Date "2018.04.17"]
[Round "2"]
[White "schoolmeester"]
[Black "TST2014"]
[Result "1-0"]
[WhiteElo "2673"]
[BlackElo "2348"]
[TimeControl "180+2"]
[EndTime "13:24:03 PDT"]
[Termination "schoolmeester won on time"]

1. e4 {[%clk 0:02:57.2]} 1... e5 {[%clk 0:03:00.4]} 2. f4 {[%clk 0:02:57]} 2...
d5 {[%clk 0:02:59.8]} 3. Nf3 {[%clk 0:02:46]} 3... exf4 {[%clk 0:02:51.2]} 4.
exd5 {[%clk 0:02:45.7]} 4... Nf6 {[%clk 0:02:52.4]} 5. d4 {[%clk 0:02:45.9]}
5... Nxd5 {[%clk 0:02:48.4]} 6. Bc4 {[%clk 0:02:45.9]} 6... Bb4+ {[%clk
0:02:40.3]} 7. c3 {[%clk 0:02:43.9]} 7... Be7 {[%clk 0:02:41.7]} 8. O-O {[%clk
0:02:42.9]} 8... O-O {[%clk 0:02:41.3]} 9. Bxd5 {[%clk 0:02:41.8]} 9... Qxd5
{[%clk 0:02:40.8]} 10. Bxf4 {[%clk 0:02:42.4]} 10... c5 {[%clk 0:02:41.5]} 11.
Re1 {[%clk 0:02:34.5]} 11... Bf6 {[%clk 0:02:34]} 12. Be5 {[%clk 0:02:30.1]}
12... Nd7 {[%clk 0:02:29.3]} 13. Bxf6 {[%clk 0:02:29.6]} 13... Nxf6 {[%clk
0:02:27]} 14. Re5 {[%clk 0:02:30]} 14... Qd6 {[%clk 0:02:23.4]} 15. Rxc5 {[%clk
0:02:28.5]} 15... b6 {[%clk 0:02:05.9]} 16. Re5 {[%clk 0:02:23.6]} 16... Bb7
{[%clk 0:02:07.1]} 17. Nbd2 {[%clk 0:02:19.5]} 17... Rfe8 {[%clk 0:02:04.7]} 18.
Qe2 {[%clk 0:02:16.3]} 18... Rxe5 {[%clk 0:01:57.9]} 19. Nxe5 {[%clk 0:02:12.5]}
19... Re8 {[%clk 0:01:47.3]} 20. Qf2 {[%clk 0:02:03.2]} 20... Qd5 {[%clk
0:01:42.3]} 21. c4 {[%clk 0:01:56.4]} 21... Qd6 {[%clk 0:01:33.5]} 22. Re1
{[%clk 0:01:51]} 22... h6 {[%clk 0:01:29.6]} 23. h3 {[%clk 0:01:47.4]} 23... Qb4
{[%clk 0:01:27.3]} 24. Nb1 {[%clk 0:01:35.8]} 24... Re7 {[%clk 0:01:12.3]} 25.
Nc3 {[%clk 0:01:29.1]} 25... a6 {[%clk 0:01:05.2]} 26. d5 {[%clk 0:01:10.3]}
26... Qd6 {[%clk 0:01:03.6]} 27. Nd3 {[%clk 0:01:01.9]} 27... b5 {[%clk
0:00:58.8]} 28. c5 {[%clk 0:00:59]} 28... Qd8 {[%clk 0:00:55.3]} 29. d6 {[%clk
0:00:55.1]} 29... Rxe1+ {[%clk 0:00:53.9]} 30. Qxe1 {[%clk 0:00:55.9]} 30... Kf8
{[%clk 0:00:38.8]} 31. b4 {[%clk 0:00:50.8]} 31... Qd7 {[%clk 0:00:35.9]} 32.
Qe5 {[%clk 0:00:35.4]} 32... Qc6 {[%clk 0:00:32.4]} 33. Nf4 {[%clk 0:00:33.5]}
33... a5 {[%clk 0:00:19.6]} 34. a3 {[%clk 0:00:33.1]} 34... axb4 {[%clk
0:00:20.2]} 35. axb4 {[%clk 0:00:34.3]} 35... Kg8 {[%clk 0:00:20.9]} 36. Ncd5
{[%clk 0:00:25]} 36... Nxd5 {[%clk 0:00:21.1]} 37. Nxd5 {[%clk 0:00:24.6]} 37...
f6 {[%clk 0:00:19.9]} 38. Qe6+ {[%clk 0:00:23.1]} 38... Kh7 {[%clk 0:00:20.7]}
39. Nf4 {[%clk 0:00:17.8]} 39... Bc8 {[%clk 0:00:21.9]} 40. Qd5 {[%clk
0:00:18.2]} 40... Bd7 {[%clk 0:00:22.1]} 41. Qxc6 {[%clk 0:00:18.8]} 41... Bxc6
{[%clk 0:00:23.6]} 42. Ne2 {[%clk 0:00:20.3]} 42... Kg8 {[%clk 0:00:25.1]} 43.
Nd4 {[%clk 0:00:21.8]} 43... Be8 {[%clk 0:00:25.1]} 44. c6 {[%clk 0:00:23.1]}
44... Kf7 {[%clk 0:00:26.4]} 45. d7 {[%clk 0:00:24.1]} 45... Bxd7 {[%clk
0:00:27.4]} 46. cxd7 {[%clk 0:00:25.6]} 46... Ke7 {[%clk 0:00:29.1]} 47. Nxb5
{[%clk 0:00:26.9]} 47... Kxd7 {[%clk 0:00:30.8]} 48. Nd4 {[%clk 0:00:28.3]}
48... Kd6 {[%clk 0:00:31.8]} 49. g4 {[%clk 0:00:29.1]} 49... g6 {[%clk
0:00:32.2]} 50. Kf2 {[%clk 0:00:29.6]} 50... Kd5 {[%clk 0:00:33]} 51. Ke3 {[%clk
0:00:30.6]} 51... h5 {[%clk 0:00:30.4]} 52. gxh5 {[%clk 0:00:30.6]} 52... gxh5
{[%clk 0:00:32]} 53. b5 {[%clk 0:00:31.5]} 53... Kc5 {[%clk 0:00:32.9]} 54. Ke4
{[%clk 0:00:32.2]} 54... f5+ {[%clk 0:00:33.9]} 55. Kxf5 {[%clk 0:00:32.9]}
55... Kxd4 {[%clk 0:00:35.4]} 56. b6 {[%clk 0:00:34]} 56... Ke3 {[%clk 0:00:37]}
57. b7 {[%clk 0:00:34.6]} 57... Kf3 {[%clk 0:00:38.6]} 58. b8=Q {[%clk
0:00:35.6]} 58... Kg2 {[%clk 0:00:40.2]} 59. h4 {[%clk 0:00:36.8]} 59... Kh3
{[%clk 0:00:41.4]} 60. Kg5 {[%clk 0:00:38.1]} 60... Kg2 {[%clk 0:00:42]} 61. Qf4
{[%clk 0:00:39.1]} 61... Kh3 {[%clk 0:00:43.5]} 62. Kxh5 {[%clk 0:00:40.4]}
62... Kg2 {[%clk 0:00:45]} 63. Kg4 {[%clk 0:00:41.6]} 1-0

[Event "*** Biggest EVER Titled Tuesday"]
[Site "Chess.com"]
[Date "2018.04.17"]
[Round "2"]
[White "TheBigBoss04"]
[Black "BillieKimbah"]
[Result "0-1"]
[WhiteElo "2523"]
[BlackElo "2766"]
[TimeControl "180+2"]
[EndTime "13:24:04 PDT"]
[Termination "BillieKimbah won by checkmate"]

1. d4 {[%clk 0:03:01]} 1... Nf6 {[%clk 0:02:59.8]} 2. c4 {[%clk 0:03:02]} 2...
e6 {[%clk 0:03:00.8]} 3. Nc3 {[%clk 0:03:03.1]} 3... Bb4 {[%clk 0:03:01.2]} 4.
Qc2 {[%clk 0:03:04.5]} 4... d5 {[%clk 0:03:00]} 5. cxd5 {[%clk 0:03:04.6]} 5...
Qxd5 {[%clk 0:03:00.7]} 6. Nf3 {[%clk 0:03:05.9]} 6... Qf5 {[%clk 0:03:00.9]} 7.
Qxf5 {[%clk 0:03:07.4]} 7... exf5 {[%clk 0:03:01.8]} 8. a3 {[%clk 0:03:06.1]}
8... Be7 {[%clk 0:03:01.8]} 9. Bf4 {[%clk 0:03:06.4]} 9... c6 {[%clk 0:03:02]}
10. e3 {[%clk 0:03:04.4]} 10... Nbd7 {[%clk 0:03:02.9]} 11. h3 {[%clk
0:03:02.2]} 11... Nb6 {[%clk 0:03:03.3]} 12. Bd3 {[%clk 0:03:01.9]} 12... Nfd5
{[%clk 0:03:03.7]} 13. Nxd5 {[%clk 0:03:02.2]} 13... Nxd5 {[%clk 0:03:05.6]} 14.
Be5 {[%clk 0:03:02.1]} 14... f6 {[%clk 0:03:05.7]} 15. Bh2 {[%clk 0:03:01.6]}
15... Be6 {[%clk 0:03:06.7]} 16. Ke2 {[%clk 0:03:00.3]} 16... a5 {[%clk
0:03:07.2]} 17. Nd2 {[%clk 0:02:52.7]} 17... Kf7 {[%clk 0:03:02.8]} 18. Rhc1
{[%clk 0:02:51]} 18... Rhd8 {[%clk 0:02:56]} 19. Nc4 {[%clk 0:02:43.3]} 19...
Bf8 {[%clk 0:02:43.9]} 20. Rc2 {[%clk 0:02:32.6]} 20... a4 {[%clk 0:02:44.1]}
21. Rac1 {[%clk 0:02:30]} 21... h5 {[%clk 0:02:42.3]} 22. h4 {[%clk 0:02:29.5]}
22... g6 {[%clk 0:02:42.1]} 23. f3 {[%clk 0:02:24.1]} 23... Bh6 {[%clk
0:02:17.6]} 24. Re1 {[%clk 0:02:06.7]} 24... f4 {[%clk 0:02:05]} 25. e4 {[%clk
0:02:03.7]} 25... Ne3 {[%clk 0:02:04.8]} 26. Nxe3 {[%clk 0:01:59.5]} 26... fxe3
{[%clk 0:02:06.7]} 27. d5 {[%clk 0:01:49.7]} 27... cxd5 {[%clk 0:02:06.4]} 28.
Rc7+ {[%clk 0:01:50.5]} 28... Kg8 {[%clk 0:02:02.1]} 29. e5 {[%clk 0:01:47.1]}
29... f5 {[%clk 0:01:55.5]} 30. Rec1 {[%clk 0:01:36.4]} 30... d4 {[%clk
0:01:52.2]} 31. Re7 {[%clk 0:01:30.6]} 31... Re8 {[%clk 0:01:48.3]} 32. Rcc7
{[%clk 0:01:28]} 32... Bd5 {[%clk 0:01:31.2]} 33. Red7 {[%clk 0:01:22.5]} 33...
Be6 {[%clk 0:01:22.9]} 34. Rh7 {[%clk 0:01:20.4]} 34... Bf8 {[%clk 0:01:20.4]}
35. Bf4 {[%clk 0:01:02.3]} 35... Rac8 {[%clk 0:01:20.7]} 36. Bb5 {[%clk
0:00:48.5]} 36... Red8 {[%clk 0:01:13.8]} 37. Bxa4 {[%clk 0:00:43.4]} 37... Bc4+
{[%clk 0:00:56.5]} 38. Ke1 {[%clk 0:00:39.6]} 38... b5 {[%clk 0:00:54.8]} 39.
Bd1 {[%clk 0:00:30.6]} 39... Rxc7 {[%clk 0:00:34.2]} 40. Rxc7 {[%clk 0:00:30.9]}
40... Bg7 {[%clk 0:00:30.9]} 41. b3 {[%clk 0:00:28.4]} 41... Bf7 {[%clk
0:00:30.6]} 42. a4 {[%clk 0:00:23.9]} 42... bxa4 {[%clk 0:00:31]} 43. bxa4
{[%clk 0:00:25.1]} 43... Bf8 {[%clk 0:00:32.9]} 44. Rb7 {[%clk 0:00:19.7]} 44...
Bc5 {[%clk 0:00:32.5]} 45. e6 {[%clk 0:00:14.9]} 45... Bxe6 {[%clk 0:00:32.6]}
46. Rc7 {[%clk 0:00:16.1]} 46... Bb6 {[%clk 0:00:32.8]} 47. Rc6 {[%clk
0:00:17.1]} 47... Ba5+ {[%clk 0:00:34.1]} 48. Ke2 {[%clk 0:00:18.5]} 48... Bd5
{[%clk 0:00:33]} 49. Rc5 {[%clk 0:00:18.9]} 49... d3+ {[%clk 0:00:24.1]} 50.
Kxd3 {[%clk 0:00:15.6]} 50... Bxf3+ {[%clk 0:00:25]} 51. Kxe3 {[%clk 0:00:15.4]}
51... Bb6 {[%clk 0:00:26.1]} 52. Kxf3 {[%clk 0:00:16.1]} 52... Bxc5 {[%clk
0:00:27.2]} 53. Bb3+ {[%clk 0:00:16.1]} 53... Kh7 {[%clk 0:00:28.2]} 54. Bc4
{[%clk 0:00:17.1]} 54... Rd4 {[%clk 0:00:28.7]} 55. Bb5 {[%clk 0:00:17.7]} 55...
Rb4 {[%clk 0:00:29.1]} 56. g3 {[%clk 0:00:18.3]} 56... Rb3+ {[%clk 0:00:29.8]}
57. Kg2 {[%clk 0:00:19.3]} 57... Bd4 {[%clk 0:00:30.9]} 58. Bc4 {[%clk
0:00:18.2]} 58... Ra3 {[%clk 0:00:31.3]} 59. Bb5 {[%clk 0:00:18.6]} 59... Kg7
{[%clk 0:00:32.2]} 60. Bd6 {[%clk 0:00:19]} 60... Ra2+ {[%clk 0:00:32.7]} 61.
Kh3 {[%clk 0:00:20]} 61... Bg1 {[%clk 0:00:32]} 62. Be5+ {[%clk 0:00:19]} 62...
Kh7 {[%clk 0:00:32.9]} 63. g4 {[%clk 0:00:07.9]} 63... fxg4+ {[%clk 0:00:32.8]}
64. Kg3 {[%clk 0:00:07.9]} 64... Bh2# {[%clk 0:00:34]} 0-1

[Event "*** Biggest EVER Titled Tuesday"]
[Site "Chess.com"]
[Date "2018.04.17"]
[Round "2"]
[White "peteseeger"]
[Black "Triumphmate"]
[Result "1-0"]
[WhiteElo "2080"]
[BlackElo "2161"]
[TimeControl "180+2"]
[EndTime "13:24:13 PDT"]
[Termination "peteseeger won by resignation"]

1. e4 {[%clk 0:03:01.9]} 1... d5 {[%clk 0:02:58]} 2. exd5 {[%clk 0:03:02]} 2...
Nf6 {[%clk 0:02:54.1]} 3. Nf3 {[%clk 0:03:00.6]} 3... Bg4 {[%clk 0:02:53]} 4.
Bb5+ {[%clk 0:02:59]} 4... c6 {[%clk 0:02:52.5]} 5. dxc6 {[%clk 0:02:59]} 5...
Nxc6 {[%clk 0:02:54.4]} 6. O-O {[%clk 0:02:52.6]} 6... e6 {[%clk 0:02:54.1]} 7.
h3 {[%clk 0:02:51.5]} 7... Bh5 {[%clk 0:02:51]} 8. d3 {[%clk 0:02:46]} 8... h6
{[%clk 0:02:48.7]} 9. Be3 {[%clk 0:02:37.5]} 9... Bd6 {[%clk 0:02:44.7]} 10.
Nbd2 {[%clk 0:02:37.7]} 10... O-O {[%clk 0:02:38.7]} 11. c3 {[%clk 0:02:26.7]}
11... Bc7 {[%clk 0:02:37.5]} 12. d4 {[%clk 0:02:18.3]} 12... Ne7 {[%clk
0:02:18.4]} 13. Qb3 {[%clk 0:02:14.8]} 13... Nf5 {[%clk 0:02:15.7]} 14. Rfe1
{[%clk 0:02:01.5]} 14... Nd5 {[%clk 0:02:15.1]} 15. Bd3 {[%clk 0:01:47.4]} 15...
Ndxe3 {[%clk 0:02:03.9]} 16. fxe3 {[%clk 0:01:47.7]} 16... Qd6 {[%clk
0:02:05.3]} 17. e4 {[%clk 0:01:45.5]} 17... Ng3 {[%clk 0:01:16.4]} 18. e5 {[%clk
0:01:45.6]} 18... Qd7 {[%clk 0:01:13.1]} 19. Ne4 {[%clk 0:01:44.5]} 19... Nxe4
{[%clk 0:01:13.1]} 20. Bxe4 {[%clk 0:01:45.3]} 20... f5 {[%clk 0:01:08.9]} 21.
Bd3 {[%clk 0:01:31.1]} 21... Bxf3 {[%clk 0:01:05.9]} 22. gxf3 {[%clk 0:01:30.6]}
22... Qe7 {[%clk 0:01:06.4]} 23. Bc4 {[%clk 0:01:25.1]} 23... Rae8 {[%clk
0:00:56.4]} 24. Qc2 {[%clk 0:01:22.8]} 24... Qh4 {[%clk 0:00:48.6]} 25. Qg2
{[%clk 0:01:22.3]} 25... f4 {[%clk 0:00:49.5]} 26. Kh1 {[%clk 0:01:19.1]} 26...
Rf5 {[%clk 0:00:50.1]} 27. Rg1 {[%clk 0:01:18.2]} 27... Rg5 {[%clk 0:00:50.7]}
28. Qh2 {[%clk 0:01:14.9]} 28... Rf8 {[%clk 0:00:17.6]} 29. Rg4 {[%clk
0:01:12.8]} 29... Rxg4 {[%clk 0:00:17.8]} 30. hxg4 {[%clk 0:01:12.9]} 30... Qe7
{[%clk 0:00:11.9]} 31. Rg1 {[%clk 0:01:04.6]} 31... Bd8 {[%clk 0:00:11.1]} 32.
Qh5 {[%clk 0:01:00.6]} 32... a6 {[%clk 0:00:11.7]} 33. Kg2 {[%clk 0:00:54.8]}
33... b5 {[%clk 0:00:11.5]} 34. Bd3 {[%clk 0:00:55]} 34... Qf7 {[%clk
0:00:09.2]} 35. Qxf7+ {[%clk 0:00:49.3]} 35... Kxf7 {[%clk 0:00:11.1]} 36. Be4
{[%clk 0:00:50]} 36... Ke7 {[%clk 0:00:08.3]} 37. Kf2 {[%clk 0:00:50.6]} 37...
Kd7 {[%clk 0:00:09]} 38. Ke2 {[%clk 0:00:51.3]} 38... Kc7 {[%clk 0:00:10.3]} 39.
Kd3 {[%clk 0:00:52.3]} 39... Kb6 {[%clk 0:00:11.8]} 40. b3 {[%clk 0:00:52.8]}
40... Bh4 {[%clk 0:00:12.6]} 41. c4 {[%clk 0:00:49.8]} 41... Rd8 {[%clk
0:00:12.6]} 42. d5 {[%clk 0:00:50]} 42... Kc5 {[%clk 0:00:11.9]} 43. Rc1 {[%clk
0:00:45.9]} 43... b4 {[%clk 0:00:12]} 44. Ra1 {[%clk 0:00:32.1]} 44... Bf2
{[%clk 0:00:11.8]} 45. a3 {[%clk 0:00:32.4]} 45... a5 {[%clk 0:00:10.9]} 46.
axb4+ {[%clk 0:00:33.1]} 46... axb4 {[%clk 0:00:12.7]} 47. Ra5+ {[%clk
0:00:33.5]} 47... Kb6 {[%clk 0:00:13.8]} 48. Rb5+ {[%clk 0:00:34.5]} 48... Kc7
{[%clk 0:00:15.2]} 49. d6+ {[%clk 0:00:34.1]} 49... Kd7 {[%clk 0:00:14.7]} 50.
Rxb4 {[%clk 0:00:33.7]} 50... Rc8 {[%clk 0:00:14.3]} 51. Rb7+ {[%clk 0:00:33.6]}
51... Kd8 {[%clk 0:00:13.8]} 52. Rxg7 {[%clk 0:00:33.4]} 52... Rc5 {[%clk
0:00:15.3]} 53. Rg6 {[%clk 0:00:27.7]} 53... Rxe5 {[%clk 0:00:15.8]} 54. Rxh6
{[%clk 0:00:28.5]} 54... Bc5 {[%clk 0:00:17]} 55. Rh5 {[%clk 0:00:24]} 55...
Bxd6 {[%clk 0:00:16.9]} 56. Rxe5 {[%clk 0:00:23.9]} 56... Bxe5 {[%clk
0:00:18.7]} 57. c5 {[%clk 0:00:24.7]} 57... Kc7 {[%clk 0:00:19.3]} 58. Kc4
{[%clk 0:00:25.6]} 58... Bf6 {[%clk 0:00:20.3]} 59. b4 {[%clk 0:00:26.5]} 59...
e5 {[%clk 0:00:21.1]} 60. b5 {[%clk 0:00:27.6]} 60... Bh4 {[%clk 0:00:20.2]} 61.
b6+ {[%clk 0:00:28.4]} 61... Kc8 {[%clk 0:00:20.2]} 62. c6 {[%clk 0:00:28]}
62... Bf6 {[%clk 0:00:21.2]} 63. Bf5+ {[%clk 0:00:26.1]} 63... Kb8 {[%clk
0:00:22.2]} 64. c7+ {[%clk 0:00:26.4]} 1-0

[Event "*** Biggest EVER Titled Tuesday"]
[Site "Chess.com"]
[Date "2018.04.17"]
[Round "2"]
[White "LuckyTiger"]
[Black "ZapataCharlesS"]
[Result "0-1"]
[WhiteElo "2622"]
[BlackElo "2671"]
[TimeControl "180+2"]
[EndTime "13:24:15 PDT"]
[Termination "ZapataCharlesS won by resignation"]

1. e4 {[%clk 0:02:46.8]} 1... e5 {[%clk 0:02:58.2]} 2. Nf3 {[%clk 0:02:46.5]}
2... Nc6 {[%clk 0:02:59.8]} 3. Bb5 {[%clk 0:02:46.8]} 3... g6 {[%clk 0:03:00.2]}
4. h4 {[%clk 0:02:41.9]} 4... h6 {[%clk 0:02:50.9]} 5. Nc3 {[%clk 0:02:22.9]}
5... Bg7 {[%clk 0:02:48.1]} 6. d3 {[%clk 0:02:23.4]} 6... d6 {[%clk 0:02:42.9]}
7. Be3 {[%clk 0:02:24]} 7... Bg4 {[%clk 0:02:40.7]} 8. Qd2 {[%clk 0:02:24.7]}
8... a6 {[%clk 0:02:39.2]} 9. Ba4 {[%clk 0:02:24.9]} 9... b5 {[%clk 0:02:37.7]}
10. Bb3 {[%clk 0:02:25.9]} 10... Nge7 {[%clk 0:02:37.7]} 11. Nd5 {[%clk
0:02:17.8]} 11... Be6 {[%clk 0:02:07.5]} 12. a4 {[%clk 0:02:12]} 12... Nd4
{[%clk 0:01:55.2]} 13. Bxd4 {[%clk 0:02:11.3]} 13... exd4 {[%clk 0:01:57.1]} 14.
axb5 {[%clk 0:02:09.3]} 14... Bxd5 {[%clk 0:01:55.1]} 15. Bxd5 {[%clk
0:02:09.1]} 15... Nxd5 {[%clk 0:01:55.4]} 16. exd5 {[%clk 0:02:11]} 16... axb5
{[%clk 0:01:57.1]} 17. O-O {[%clk 0:01:56.3]} 17... O-O {[%clk 0:01:56.6]} 18.
h5 {[%clk 0:01:53.2]} 18... gxh5 {[%clk 0:01:51.8]} 19. Qf4 {[%clk 0:01:53]}
19... Qf6 {[%clk 0:01:48.5]} 20. g3 {[%clk 0:01:14.1]} 20... Qxf4 {[%clk
0:01:41]} 21. gxf4 {[%clk 0:01:16]} 21... Bf6 {[%clk 0:01:33]} 22. Nd2 {[%clk
0:01:13.3]} 22... Kh7 {[%clk 0:01:28.2]} 23. f5 {[%clk 0:01:12.8]} 23... Rg8+
{[%clk 0:01:25.3]} 24. Kh2 {[%clk 0:01:12.9]} 24... Rxa1 {[%clk 0:01:21.9]} 25.
Rxa1 {[%clk 0:01:13.2]} 25... Rg5 {[%clk 0:01:23.8]} 26. Ne4 {[%clk 0:01:09]}
26... Rxf5 {[%clk 0:01:24.7]} 27. Ra7 {[%clk 0:01:09.6]} 27... Kg6 {[%clk
0:01:14.4]} 28. Rxc7 {[%clk 0:01:08.9]} 28... Bg5 {[%clk 0:01:16]} 29. Kg2
{[%clk 0:01:05.9]} 29... Rxd5 {[%clk 0:01:14.4]} 30. b4 {[%clk 0:01:04.6]} 30...
f5 {[%clk 0:01:12.2]} 31. Ng3 {[%clk 0:01:05.4]} 31... Re5 {[%clk 0:01:13.4]}
32. Rc6 {[%clk 0:01:04.2]} 32... Re6 {[%clk 0:01:08.4]} 33. Kf3 {[%clk
0:00:52.3]} 33... h4 {[%clk 0:01:04.1]} 34. Ne2 {[%clk 0:00:53.2]} 34... Kh5
{[%clk 0:01:02.7]} 35. Nxd4 {[%clk 0:00:52.2]} 35... Rg6 {[%clk 0:00:59.6]} 36.
Ra6 {[%clk 0:00:45.5]} 36... Bd2 {[%clk 0:00:57.3]} 37. c4 {[%clk 0:00:38.4]}
37... bxc4 {[%clk 0:00:56]} 38. b5 {[%clk 0:00:32.6]} 38... c3 {[%clk
0:00:46.4]} 39. b6 {[%clk 0:00:33.1]} 39... h3 {[%clk 0:00:45.9]} 40. Ra1 {[%clk
0:00:25.8]} 40... d5 {[%clk 0:00:40.5]} 41. b7 {[%clk 0:00:24.8]} 41... Rb6
{[%clk 0:00:40.7]} 42. Rh1 {[%clk 0:00:17.8]} 42... Kg6 {[%clk 0:00:38.8]} 43.
Rxh3 {[%clk 0:00:16.9]} 43... Rxb7 {[%clk 0:00:39.8]} 44. Rg3+ {[%clk
0:00:17.5]} 44... Bg5 {[%clk 0:00:40.5]} 45. Ke2 {[%clk 0:00:18.1]} 45... Rb2+
{[%clk 0:00:39.7]} 46. Ke1 {[%clk 0:00:18.4]} 46... Kf6 {[%clk 0:00:33.7]} 47.
Rf3 {[%clk 0:00:15.7]} 47... Rb1+ {[%clk 0:00:30.8]} 48. Ke2 {[%clk 0:00:16.2]}
48... Rb2+ {[%clk 0:00:32.7]} 49. Kd1 {[%clk 0:00:14.7]} 49... Ke5 {[%clk
0:00:29]} 50. Nc2 {[%clk 0:00:07.9]} 50... d4 {[%clk 0:00:27]} 51. Rh3 {[%clk
0:00:06.5]} 51... Rb1+ {[%clk 0:00:23.3]} 52. Ke2 {[%clk 0:00:07.1]} 52... Rb2
{[%clk 0:00:22.2]} 53. Kd1 {[%clk 0:00:08]} 53... Bd2 {[%clk 0:00:21.4]} 54. Rh4
{[%clk 0:00:06.4]} 54... Rb1+ {[%clk 0:00:22.3]} 55. Ke2 {[%clk 0:00:07.5]}
55... Bf4 {[%clk 0:00:21.2]} 56. Nxd4 {[%clk 0:00:05.8]} 56... Rb2+ {[%clk
0:00:17]} 57. Kf3 {[%clk 0:00:05.7]} 57... Kxd4 {[%clk 0:00:17.8]} 58. Rxf4+
{[%clk 0:00:07.2]} 58... Kxd3 {[%clk 0:00:19.4]} 59. Rxf5 {[%clk 0:00:08.4]}
59... c2 {[%clk 0:00:20.7]} 60. Rd5+ {[%clk 0:00:08.1]} 60... Kc4 {[%clk
0:00:21]} 61. Rd8 {[%clk 0:00:09.5]} 61... Kb3 {[%clk 0:00:21]} 62. Rc8 {[%clk
0:00:09.1]} 62... Ka2 {[%clk 0:00:21.9]} 63. Ke3 {[%clk 0:00:08.8]} 63... Kb1
{[%clk 0:00:23.1]} 0-1

[Event "*** Biggest EVER Titled Tuesday"]
[Site "Chess.com"]
[Date "2018.04.17"]
[Round "2"]
[White "Vusatiuk_Vladimir"]
[Black "Renegade_Hitman"]
[Result "1-0"]
[WhiteElo "2195"]
[BlackElo "2069"]
[TimeControl "180+2"]
[EndTime "13:24:19 PDT"]
[Termination "Vusatiuk_Vladimir won by resignation"]

1. e4 {[%clk 0:03:01.9]} 1... e5 {[%clk 0:03:00.5]} 2. Nf3 {[%clk 0:03:02.2]}
2... Nc6 {[%clk 0:03:01.4]} 3. d4 {[%clk 0:03:03.2]} 3... exd4 {[%clk
0:03:01.8]} 4. Nxd4 {[%clk 0:03:04.3]} 4... Bc5 {[%clk 0:03:02.5]} 5. Nb3 {[%clk
0:03:04.7]} 5... Bb6 {[%clk 0:02:57.2]} 6. Nc3 {[%clk 0:03:01.7]} 6... Nf6
{[%clk 0:02:55.3]} 7. Qe2 {[%clk 0:02:56.2]} 7... O-O {[%clk 0:02:52.9]} 8. Be3
{[%clk 0:02:53.3]} 8... Re8 {[%clk 0:02:43]} 9. f3 {[%clk 0:02:54.1]} 9... Bxe3
{[%clk 0:02:14.7]} 10. Qxe3 {[%clk 0:02:54.4]} 10... d5 {[%clk 0:02:16]} 11.
O-O-O {[%clk 0:02:42.1]} 11... Qe7 {[%clk 0:02:15.1]} 12. Nxd5 {[%clk
0:02:38.6]} 12... Nxd5 {[%clk 0:02:15.6]} 13. Rxd5 {[%clk 0:02:40]} 13... Be6
{[%clk 0:02:16.3]} 14. Rd1 {[%clk 0:02:38.9]} 14... Qb4 {[%clk 0:02:02.3]} 15.
Qc5 {[%clk 0:02:27.5]} 15... a5 {[%clk 0:01:41.1]} 16. Qxb4 {[%clk 0:02:21.9]}
16... axb4 {[%clk 0:01:38.8]} 17. Kb1 {[%clk 0:02:22.5]} 17... Na5 {[%clk
0:01:38]} 18. Nc5 {[%clk 0:02:04]} 18... Red8 {[%clk 0:01:06]} 19. Bd3 {[%clk
0:01:56.7]} 19... Rd6 {[%clk 0:00:45.4]} 20. e5 {[%clk 0:01:45.6]} 20... Rc6
{[%clk 0:00:39.6]} 21. Nxe6 {[%clk 0:01:45.7]} 21... Rxe6 {[%clk 0:00:39.1]} 22.
f4 {[%clk 0:01:46.6]} 22... f6 {[%clk 0:00:35.3]} 23. a3 {[%clk 0:01:24]} 23...
bxa3 {[%clk 0:00:29.6]} 24. b4 {[%clk 0:01:24.7]} 24... Rb6 {[%clk 0:00:31.2]}
25. c3 {[%clk 0:01:19.3]} 25... fxe5 {[%clk 0:00:30.2]} 26. fxe5 {[%clk
0:01:17.8]} 26... a2+ {[%clk 0:00:31.4]} 27. Kxa2 {[%clk 0:01:15.8]} 27... Nc4+
{[%clk 0:00:32.5]} 28. Kb3 {[%clk 0:01:15.7]} 28... Nxe5 {[%clk 0:00:30]} 29.
Be4 {[%clk 0:01:11.5]} 29... c5 {[%clk 0:00:26.7]} 30. Rd5 {[%clk 0:01:05.8]}
30... c4+ {[%clk 0:00:23.2]} 31. Kb2 {[%clk 0:01:06.8]} 31... Nc6 {[%clk
0:00:17.3]} 32. Rc5 {[%clk 0:01:00]} 32... Rd8 {[%clk 0:00:17.7]} 33. Bxc6
{[%clk 0:00:56.7]} 33... Rxc6 {[%clk 0:00:18]} 34. Rxc6 {[%clk 0:00:56.5]} 34...
bxc6 {[%clk 0:00:19.9]} 35. Kc2 {[%clk 0:00:56.9]} 35... Kf7 {[%clk 0:00:20.2]}
36. Ra1 {[%clk 0:00:54.4]} 36... Ke6 {[%clk 0:00:19.7]} 37. Ra6 {[%clk 0:00:55]}
37... Rd6 {[%clk 0:00:17.9]} 38. Ra5 {[%clk 0:00:52.7]} 38... Rd5 {[%clk
0:00:17.6]} 39. Ra7 {[%clk 0:00:46.6]} 39... Rg5 {[%clk 0:00:17.5]} 40. g3
{[%clk 0:00:47.2]} 40... Kd6 {[%clk 0:00:17]} 41. Kd2 {[%clk 0:00:48.1]} 41...
Rh5 {[%clk 0:00:17.9]} 42. h4 {[%clk 0:00:48.4]} 42... g5 {[%clk 0:00:18.3]} 43.
hxg5 {[%clk 0:00:41.8]} 43... Rxg5 {[%clk 0:00:19.2]} 44. Rxh7 {[%clk
0:00:42.2]} 44... Rxg3 {[%clk 0:00:20.8]} 45. Rh4 {[%clk 0:00:39.8]} 45... Rd3+
{[%clk 0:00:19.9]} 46. Kc2 {[%clk 0:00:39.3]} 46... Kd5 {[%clk 0:00:20.2]} 47.
Rh5+ {[%clk 0:00:40.4]} 47... Kd6 {[%clk 0:00:21.1]} 48. Rc5 {[%clk 0:00:40.9]}
48... Rh3 {[%clk 0:00:11.7]} 49. Rxc4 {[%clk 0:00:41.8]} 49... Kd5 {[%clk
0:00:10.9]} 50. Rc5+ {[%clk 0:00:42.1]} 50... Kd6 {[%clk 0:00:11.2]} 51. Kb3
{[%clk 0:00:42.9]} 51... Rd3 {[%clk 0:00:09.4]} 52. Rh5 {[%clk 0:00:42.6]} 52...
Rd1 {[%clk 0:00:08.8]} 53. Kc4 {[%clk 0:00:37.5]} 53... Rb1 {[%clk 0:00:05.5]}
54. Rh6+ {[%clk 0:00:38.1]} 54... Kc7 {[%clk 0:00:05.4]} 55. Kc5 {[%clk
0:00:39.1]} 55... Rc1 {[%clk 0:00:05.9]} 56. Rxc6+ {[%clk 0:00:38]} 56... Kd7
{[%clk 0:00:07]} 57. Kb5 {[%clk 0:00:38.4]} 57... Rd1 {[%clk 0:00:05.4]} 58. c4
{[%clk 0:00:39.4]} 58... Rh1 {[%clk 0:00:06.2]} 59. Rg6 {[%clk 0:00:36.1]} 59...
Rb1 {[%clk 0:00:07.2]} 60. c5 {[%clk 0:00:36]} 60... Kc7 {[%clk 0:00:07.5]} 61.
Rg7+ {[%clk 0:00:37.1]} 61... Kb8 {[%clk 0:00:04.2]} 62. Ka5 {[%clk 0:00:37.2]}
62... Ra1+ {[%clk 0:00:02.8]} 63. Kb6 {[%clk 0:00:38]} 63... Kc8 {[%clk
0:00:04.1]} 64. c6 {[%clk 0:00:37.9]} 64... Kd8 {[%clk 0:00:04.9]} 65. c7+
{[%clk 0:00:37.8]} 1-0